[Event "European Rapid Championship 2021"]
[Site "Katowice"]
[Date "2021.12.19"]
[Round "7.21"]
[White "Tazbir, Marcin"]
[Black "Semjonovs, Ilja"]
[Result "1-0"]
[ECO "A20"]
[WhiteElo "2514"]
[BlackElo "2383"]
[Annotator "ChessBase"]
[PlyCount "59"]
[EventDate "2021.12.18"]
[EventType "swiss"]
[EventCountry "POL"]
[SourceTitle "playchess.com"]
[Source "ChessBase"]
[SourceQuality "1"]
[TimeControl "900+10"]

1. c4 {[%emt 0:00:02]} e5 {[%emt 0:07:28]} 2. g3 {[%emt 0:00:02]} Nf6 {[%emt 0:
00:02]} 3. Bg2 {[%emt 0:00:00]} d5 {[%emt 0:00:05]} 4. cxd5 {[%emt 0:00:02]}
Nxd5 {[%emt 0:00:01]} 5. Nc3 {[%emt 0:00:01]} Nb6 {[%emt 0:00:01]} 6. e3 {
[%emt 0:00:01]} Be7 {[%emt 0:00:18]} 7. Nge2 {[%emt 0:00:02]} O-O {[%emt 0:00:
10]} 8. O-O {[%emt 0:00:02]} Nc6 {[%emt 0:00:36]} 9. f4 {[%emt 0:00:19]} exf4 {
[%emt 0:01:00]} 10. Nxf4 {[%emt 0:00:02]} Nb4 {[%emt 0:00:38]} 11. d4 {[%emt 0:
00:11]} c6 {[%emt 0:00:37]} 12. e4 {[%emt 0:01:33]} Na6 {[%emt 0:00:41]} 13.
Be3 {[%emt 0:00:26]} Nc7 {[%emt 0:00:14]} 14. Kh1 {[%emt 0:00:59]} Ne6 {
[%emt 0:00:17]} 15. Nxe6 {[%emt 0:00:35]} Bxe6 {[%emt 0:00:20]} 16. d5 {
[%emt 0:00:01]} cxd5 {[%emt 0:00:18]} 17. exd5 {[%emt 0:00:01]} Bd7 {[%emt 0:
00:34]} 18. Bd4 {[%emt 0:00:03]} Rc8 {[%emt 0:00:17]} 19. Qd3 {[%emt 0:01:53]}
Bc5 {[%emt 0:00:38]} 20. Be5 {[%emt 0:00:05]} Bg4 {[%emt 0:02:05]} 21. Rae1 {
[%emt 0:00:46]} Qd7 {[%emt 0:00:32]} 22. Ne4 {[%emt 0:01:12]} Bb4 {[%emt 0:00:
45]} 23. Ng5 {[%emt 0:00:02]} g6 {[%emt 0:00:42]} 24. Ne4 {[%emt 0:00:09]} f6 {
[%emt 0:00:27]} 25. Nxf6+ {[%emt 0:00:23]} Rxf6 {[%emt 0:00:01]} 26. Bxf6 {
[%emt 0:00:01]} Bxe1 {[%emt 0:00:08]} 27. Rxe1 {[%emt 0:00:01]} Bh3 {[%emt 0:
00:11]} 28. Bxh3 {[%emt 0:01:03]} Qxh3 {[%emt 0:00:01]} 29. d6 {[%emt 0:00:01]}
Rf8 {[%emt 0:00:20]} 30. Qb3+ {[%emt 0:00:03]} 1-0

[Event "European Rapid Championship 2021"]
[Site "Katowice"]
[Date "2021.12.19"]
[Round "7.21"]
[White "Parol, Pawel"]
[Black "Paszewski, Mateusz"]
[Result "0-1"]
[ECO "D11"]
[WhiteElo "2146"]
[BlackElo "2202"]
[Annotator "ChessBase"]
[PlyCount "160"]
[EventDate "2021.12.18"]
[EventType "swiss"]
[EventCountry "POL"]
[SourceTitle "playchess.com"]
[Source "ChessBase"]
[SourceQuality "1"]
[TimeControl "900+10"]

1. d4 {[%emt 0:00:02]} d5 {[%emt 0:07:06]} 2. c4 {[%emt 0:00:03]} c6 {[%emt 0:
00:01]} 3. Nf3 {[%emt 0:00:04]} Nf6 {[%emt 0:00:01]} 4. e3 {[%emt 0:00:06]} e6
{[%emt 0:00:06]} 5. b3 {[%emt 0:00:19]} Ne4 {[%emt 0:00:02]} 6. Bb2 {[%emt 0:
01:40]} Bb4+ {[%emt 0:00:01]} 7. Nbd2 {[%emt 0:00:10]} Qf6 {[%emt 0:00:05]} 8.
Qe2 {[%emt 0:02:10]} dxc4 {[%emt 0:04:39]} 9. bxc4 {[%emt 0:02:17]} c5 {
[%emt 0:00:01]} 10. g3 {[%emt 0:04:09]} Nc6 {[%emt 0:00:31]} 11. Bg2 {[%emt 0:
00:25]} cxd4 {[%emt 0:00:11]} 12. exd4 {[%emt 0:04:43]} Nxd2 {[%emt 0:00:04]}
13. Nxd2 {[%emt 0:00:03]} Nxd4 {[%emt 0:00:10]} 14. Qd3 {[%emt 0:01:05]} Nf3+ {
[%emt 0:00:07]} 15. Bxf3 {[%emt 0:00:01]} Qxb2 {[%emt 0:00:01]} 16. Ke2 {
[%emt 0:00:16]} Qxd2+ {[%emt 0:02:40]} 17. Qxd2 {[%emt 0:00:02]} Bxd2 {[%emt 0:
00:01]} 18. Kxd2 {[%emt 0:00:01]} Kd8 {[%emt 0:00:00]} 19. Kc3 {[%emt 0:00:27]}
Kc7 {[%emt 0:00:01]} 20. Rhd1 {[%emt 0:00:01]} Rb8 {[%emt 0:00:16]} 21. c5 {
[%emt 0:00:20]} Bd7 {[%emt 0:00:46]} 22. Rd6 {[%emt 0:00:14]} Bc6 {[%emt 0:00:
01]} 23. Bxc6 {[%emt 0:00:02]} bxc6 {[%emt 0:00:01]} 24. Rad1 {[%emt 0:00:07]}
Rhd8 {[%emt 0:00:01]} 25. R1d4 {[%emt 0:00:19]} Rxd6 {[%emt 0:00:07]} 26. cxd6+
{[%emt 0:00:03]} Kd7 {[%emt 0:00:01]} 27. Rd2 {[%emt 0:00:19]} Rb5 {[%emt 0:00:
11]} 28. Kc4 {[%emt 0:00:03]} a5 {[%emt 0:00:56]} 29. f4 {[%emt 0:00:17]} h5 {
[%emt 0:00:11]} 30. h3 {[%emt 0:00:04]} g6 {[%emt 0:00:03]} 31. h4 {[%emt 0:00:
16]} Rb4+ {[%emt 0:01:04]} 32. Kc5 {[%emt 0:00:05]} Rb5+ {[%emt 0:00:07]} 33.
Kc4 {[%emt 0:00:01]} Rb1 {[%emt 0:00:43]} 34. Rd3 {[%emt 0:00:20]} Rb4+ {
[%emt 0:00:06]} 35. Kc5 {[%emt 0:00:04]} Rb5+ {[%emt 0:00:11]} 36. Kc4 {
[%emt 0:00:02]} Rd5 {[%emt 0:00:05]} 37. Rb3 {[%emt 0:00:19]} Kxd6 {[%emt 0:00:
04]} 38. Rb7 {[%emt 0:00:03]} Rf5 {[%emt 0:00:08]} 39. Ra7 {[%emt 0:00:10]}
Rc5+ {[%emt 0:00:09]} 40. Kd4 {[%emt 0:00:07]} Rd5+ {[%emt 0:00:30]} 41. Kc4 {
[%emt 0:00:07]} Rc5+ {[%emt 0:00:06]} 42. Kd4 {[%emt 0:00:01]} Rf5 {[%emt 0:00:
18]} 43. Kc4 {[%emt 0:00:02]} Rc5+ {[%emt 0:00:14]} 44. Kd4 {[%emt 0:00:01]}
Rc2 {[%emt 0:00:02]} 45. Rxa5 {[%emt 0:00:07]} f6 {[%emt 0:00:11]} 46. Ra8 {
[%emt 0:00:59]} Rg2 {[%emt 0:00:06]} 47. Ra3 {[%emt 0:00:12]} e5+ {[%emt 0:00:
13]} 48. fxe5+ {[%emt 0:00:08]} fxe5+ {[%emt 0:00:00]} 49. Ke4 {[%emt 0:00:04]}
Re2+ {[%emt 0:00:03]} 50. Kf3 {[%emt 0:00:18]} Rb2 {[%emt 0:00:08]} 51. Rd3+ {
[%emt 0:00:08]} Ke6 {[%emt 0:00:03]} 52. Rc3 {[%emt 0:00:06]} Rxa2 {[%emt 0:00:
08]} 53. Rxc6+ {[%emt 0:00:02]} Kf5 {[%emt 0:00:01]} 54. Rc3 {[%emt 0:00:24]}
Rd2 {[%emt 0:00:01]} 55. Ke3 {[%emt 0:00:06]} Rd4 {[%emt 0:00:02]} 56. Rc8 {
[%emt 0:00:05]} Rd6 {[%emt 0:00:19]} 57. Re8 {[%emt 0:00:15]} Ra6 {[%emt 0:00:
25]} 58. Rf8+ {[%emt 0:00:03]} Kg4 {[%emt 0:00:02]} 59. Re8 {[%emt 0:00:20]}
Kxg3 {[%emt 0:00:08]} 60. Rxe5 {[%emt 0:00:02]} Kxh4 {[%emt 0:00:01]} 61. Kf3 {
[%emt 0:00:05]} Ra2 {[%emt 0:00:43]} 62. Re4+ {[%emt 0:00:06]} Kh3 {[%emt 0:00:
13]} 63. Re5 {[%emt 0:00:14]} Kh4 {[%emt 0:00:08]} 64. Re4+ {[%emt 0:00:04]}
Kg5 {[%emt 0:00:01]} 65. Re5+ {[%emt 0:00:11]} Kf6 {[%emt 0:00:04]} 66. Rb5 {
[%emt 0:00:04]} Rd2 {[%emt 0:00:08]} 67. Rb6+ {[%emt 0:00:10]} Kg5 {[%emt 0:00:
02]} 68. Rb5+ {[%emt 0:00:06]} Kh4 {[%emt 0:00:13]} 69. Rb4+ {[%emt 0:00:01]}
Kh3 {[%emt 0:00:08]} 70. Rb5 {[%emt 0:00:02]} Rg2 {[%emt 0:00:24]} 71. Rb1 {
[%emt 0:00:14]} Kh2 {[%emt 0:00:22]} 72. Kf4 {[%emt 0:00:52]} g5+ {[%emt 0:00:
05]} 73. Kf5 {[%emt 0:00:00]} h4 {[%emt 0:00:20]} 74. Kg6 {[%emt 0:00:17]} g4 {
[%emt 0:00:22]} 75. Kh5 {[%emt 0:00:01]} h3 {[%emt 0:00:10]} 76. Kh4 {[%emt 0:
00:01]} g3 {[%emt 0:00:13]} 77. Kg4 {[%emt 0:00:31]} Ra2 {[%emt 0:00:03]} 78.
Rb3 {[%emt 0:00:11]} Ra4+ {[%emt 0:00:05]} 79. Kf3 {[%emt 0:00:01]} g2 {
[%emt 0:00:03]} 80. Rb2 {[%emt 0:00:19]} Kh1 {[%emt 0:00:01]} 0-1

[Event "European Rapid Championship 2021"]
[Site "Katowice"]
[Date "2021.12.19"]
[Round "7.22"]
[White "Dragnev, Valentin"]
[Black "Ortega Ruiz, Jose Miguel"]
[Result "1-0"]
[ECO "C77"]
[WhiteElo "2409"]
[BlackElo "2150"]
[Annotator "NA"]
[PlyCount "43"]
[EventDate "2021.12.18"]
[EventType "swiss"]
[EventCountry "POL"]
[SourceTitle "playchess.com"]
[Source "ChessBase"]
[SourceQuality "1"]
[TimeControl "900+10"]

1. e4 {[%emt 0:00:08]} e5 {[%emt 0:00:05]} 2. Nf3 {[%emt 0:00:03]} Nc6 {
[%emt 0:00:02]} 3. Bb5 {[%emt 0:00:09]} a6 {[%emt 0:00:01]} 4. Ba4 {[%emt 0:00:
02]} Nf6 {[%emt 0:00:05]} 5. d3 {[%emt 0:00:06]} b5 {[%emt 0:00:40]} 6. Bb3 {
[%emt 0:00:02]} Be7 {[%emt 0:00:03]} 7. a4 {[%emt 0:00:15]} b4 {[%emt 0:00:15]}
8. a5 {[%emt 0:00:04]} O-O {[%emt 0:00:13]} 9. O-O {[%emt 0:00:07]} d6 {
[%emt 0:01:11]} 10. Nbd2 {[%emt 0:00:23]} h6 {[%emt 0:00:38]} 11. c3 {[%emt 0:
01:47]} bxc3 {[%emt 0:05:06]} 12. bxc3 {[%emt 0:00:02]} d5 {[%emt 0:00:27]} 13.
Qc2 {[%emt 0:01:04]} Bg4 {[%emt 0:03:56]} 14. h3 {[%emt 0:01:13]} Bh5 {[%emt 0:
00:06]} 15. Nh4 {[%emt 0:03:50]} dxe4 {[%emt 0:00:20]} 16. dxe4 {[%emt 0:00:05]
} Be2 {[%emt 0:00:02]} 17. Re1 {[%emt 0:00:02]} Bd3 {[%emt 0:00:02]} 18. Qa2 {
[%emt 0:00:07]} Nxe4 {[%emt 0:00:14]} 19. Nxe4 {[%emt 0:00:30]} Bxh4 {[%emt 0:
00:06]} 20. Bd5 {[%emt 0:00:22]} Bb5 {[%emt 0:00:07]} 21. Ba3 {[%emt 0:02:24]}
Be7 {[%emt 0:00:02]} 22. c4 {[%emt 0:00:55]} 1-0

[Event "European Rapid Championship 2021"]
[Site "Katowice"]
[Date "2021.12.19"]
[Round "7.22"]
[White "Malicka, Maria"]
[Black "Flasinski, Michal"]
[Result "1/2-1/2"]
[ECO "B12"]
[WhiteElo "1947"]
[BlackElo "2195"]
[Annotator "NA"]
[PlyCount "105"]
[EventDate "2021.12.18"]
[EventType "swiss"]
[EventCountry "POL"]
[SourceTitle "playchess.com"]
[Source "ChessBase"]
[SourceQuality "1"]
[TimeControl "900+10"]

1. e4 {[%emt 0:00:01]} c6 {[%emt 0:00:01]} 2. d4 {[%emt 0:00:01]} d5 {[%emt 0:
00:02]} 3. f3 {[%emt 0:00:01]} dxe4 {[%emt 0:00:02]} 4. fxe4 {[%emt 0:00:01]}
e5 {[%emt 0:00:02]} 5. Nf3 {[%emt 0:00:01]} Bg4 {[%emt 0:00:02]} 6. Bc4 {
[%emt 0:00:02]} Nd7 {[%emt 0:00:04]} 7. c3 {[%emt 0:00:02]} Bxf3 {[%emt 0:03:
20]} 8. Qxf3 {[%emt 0:00:09]} Ngf6 {[%emt 0:00:02]} 9. O-O {[%emt 0:00:49]} Bd6
{[%emt 0:02:38]} 10. Bg5 {[%emt 0:00:47]} Qb6 {[%emt 0:01:01]} 11. Bb3 {
[%emt 0:07:58]} O-O {[%emt 0:02:36]} 12. Be3 {[%emt 0:00:28]} Qc7 {[%emt 0:00:
07]} 13. h3 {[%emt 0:00:28]} c5 {[%emt 0:00:36]} 14. dxc5 {[%emt 0:01:41]} Bxc5
{[%emt 0:00:28]} 15. Nd2 {[%emt 0:00:05]} Bxe3+ {[%emt 0:01:25]} 16. Qxe3 {
[%emt 0:00:01]} Qc5 {[%emt 0:00:07]} 17. Rae1 {[%emt 0:01:19]} Rad8 {[%emt 0:
00:30]} 18. Nf3 {[%emt 0:00:41]} Nxe4 {[%emt 0:00:44]} 19. Qxc5 {[%emt 0:00:05]
} Ndxc5 {[%emt 0:00:58]} 20. Nxe5 {[%emt 0:00:08]} Nxb3 {[%emt 0:00:03]} 21.
axb3 {[%emt 0:00:11]} Nd2 {[%emt 0:00:19]} 22. Rf4 {[%emt 0:00:02]} Nxb3 {
[%emt 0:00:09]} 23. Rb4 {[%emt 0:01:15]} Nc5 {[%emt 0:00:04]} 24. Rb5 {[%emt 0:
00:02]} b6 {[%emt 0:00:51]} 25. Ra1 {[%emt 0:00:28]} Rfe8 {[%emt 0:00:45]} 26.
Nc6 {[%emt 0:00:32]} Rd2 {[%emt 0:00:45]} 27. Rxa7 {[%emt 0:00:20]} h5 {
[%emt 0:00:16]} 28. Re7 {[%emt 0:00:34]} Rxe7 {[%emt 0:00:28]} 29. Nxe7+ {
[%emt 0:00:01]} Kf8 {[%emt 0:00:03]} 30. Nc8 {[%emt 0:00:08]} Na4 {[%emt 0:00:
07]} 31. Nxb6 {[%emt 0:00:10]} Rxb2 {[%emt 0:00:11]} 32. Rxb2 {[%emt 0:00:34]}
Nxb2 {[%emt 0:00:01]} 33. Kf1 {[%emt 0:00:01]} Nd3 {[%emt 0:00:02]} 34. Ke2 {
[%emt 0:00:06]} Ne5 {[%emt 0:00:02]} 35. Ke3 {[%emt 0:00:08]} Ke7 {[%emt 0:00:
03]} 36. Kd4 {[%emt 0:00:15]} Ng6 {[%emt 0:00:17]} 37. c4 {[%emt 0:00:14]} Nh4
{[%emt 0:00:26]} 38. Nd5+ {[%emt 0:00:07]} Kd7 {[%emt 0:00:06]} 39. Ne3 {
[%emt 0:00:11]} g5 {[%emt 0:00:34]} 40. Ke5 {[%emt 0:00:23]} g4 {[%emt 0:00:07]
} 41. hxg4 {[%emt 0:00:08]} hxg4 {[%emt 0:00:02]} 42. g3 {[%emt 0:00:17]} Ng6+
{[%emt 0:00:44]} 43. Kf6 {[%emt 0:00:04]} Kd6 {[%emt 0:00:05]} 44. Nxg4 {
[%emt 0:00:10]} Nf8 {[%emt 0:00:21]} 45. Kxf7 {[%emt 0:00:09]} Ne6 {[%emt 0:00:
02]} 46. Kf6 {[%emt 0:00:31]} Nc5 {[%emt 0:00:11]} 47. Kf5 {[%emt 0:00:15]} Nd3
{[%emt 0:00:13]} 48. Ne3 {[%emt 0:00:13]} Kc5 {[%emt 0:00:05]} 49. Ke4 {
[%emt 0:00:18]} Nf2+ {[%emt 0:00:02]} 50. Kf3 {[%emt 0:00:06]} Nd3 {[%emt 0:00:
08]} 51. g4 {[%emt 0:00:16]} Ne5+ {[%emt 0:00:27]} 52. Kf4 Kd4 53. g5 1/2-1/2

[Event "European Rapid Championship 2021"]
[Site "Katowice"]
[Date "2021.12.19"]
[Round "7.23"]
[White "Nasuta, Grzegorz"]
[Black "Lach, Aleksandra"]
[Result "0-1"]
[ECO "B24"]
[WhiteElo "2345"]
[BlackElo "2132"]
[Annotator "NA"]
[PlyCount "130"]
[EventDate "2021.12.18"]
[EventType "swiss"]
[EventCountry "POL"]
[SourceTitle "playchess.com"]
[Source "ChessBase"]
[SourceQuality "1"]
[TimeControl "900+10"]

1. e4 {[%emt 0:00:40]} c5 {[%emt 0:00:07]} 2. Nc3 {[%emt 0:00:06]} Nc6 {
[%emt 0:00:11]} 3. Bb5 {[%emt 0:00:07]} Nd4 {[%emt 0:00:11]} 4. Nf3 {[%emt 0:
00:02]} a6 {[%emt 0:00:31]} 5. Bc4 {[%emt 0:02:22]} Nxf3+ {[%emt 0:04:24]} 6.
Qxf3 {[%emt 0:00:05]} e6 {[%emt 0:00:01]} 7. d3 {[%emt 0:02:43]} Ne7 {[%emt 0:
04:03]} 8. O-O {[%emt 0:03:20]} Nc6 {[%emt 0:02:18]} 9. Be3 {[%emt 0:00:02]}
Be7 {[%emt 0:01:58]} 10. a3 {[%emt 0:00:42]} O-O {[%emt 0:00:10]} 11. Ba2 {
[%emt 0:00:15]} b6 {[%emt 0:01:00]} 12. Qg3 {[%emt 0:02:44]} Bb7 {[%emt 0:00:
10]} 13. f4 {[%emt 0:00:05]} f5 {[%emt 0:00:19]} 14. e5 {[%emt 0:01:19]} d5 {
[%emt 0:00:36]} 15. exd6 {[%emt 0:00:04]} Qxd6 {[%emt 0:00:01]} 16. Rae1 {
[%emt 0:00:21]} Rf6 {[%emt 0:00:00]} 17. Re2 {[%emt 0:02:17]} Rg6 {[%emt 0:00:
14]} 18. Qe1 {[%emt 0:00:01]} Re8 {[%emt 0:00:20]} 19. h3 {[%emt 0:00:46]} Bd8
{[%emt 0:00:32]} 20. Kh2 {[%emt 0:00:03]} Kh8 {[%emt 0:00:09]} 21. Bg1 {
[%emt 0:00:16]} Bc7 {[%emt 0:00:00]} 22. Nd5 {[%emt 0:00:18]} Bd8 {[%emt 0:00:
23]} 23. Ne3 {[%emt 0:00:01]} Nd4 {[%emt 0:00:03]} 24. Nc4 {[%emt 0:00:01]} Qc6
{[%emt 0:00:09]} 25. Rff2 {[%emt 0:00:08]} Rxg2+ {[%emt 0:00:09]} 26. Rxg2 Nf3+
27. Kh1 {[%emt 0:00:14]} Nxe1 {[%emt 0:00:02]} 28. Ne5 {[%emt 0:00:02]} Qxg2+ {
[%emt 0:00:50]} 29. Rxg2 {[%emt 0:00:01]} Nxg2 {[%emt 0:00:02]} 30. Nf7+ {
[%emt 0:00:06]} Kg8 {[%emt 0:00:02]} 31. Nd6 {[%emt 0:00:00]} Nxf4+ {[%emt 0:
00:18]} 32. Nxb7 {[%emt 0:00:01]} Bc7 {[%emt 0:00:05]} 33. Bh2 {[%emt 0:00:20]}
Kf7 {[%emt 0:00:08]} 34. Bc4 {[%emt 0:00:30]} Ra8 {[%emt 0:00:36]} 35. a4 {
[%emt 0:00:32]} Ke7 {[%emt 0:00:20]} 36. a5 {[%emt 0:00:03]} g5 {[%emt 0:00:22]
} 37. axb6 {[%emt 0:00:05]} Bxb6 {[%emt 0:00:01]} 38. Bg1 {[%emt 0:00:11]} Nxh3
{[%emt 0:00:16]} 39. Bxc5+ {[%emt 0:00:02]} Bxc5 {[%emt 0:00:02]} 40. Nxc5 {
[%emt 0:00:01]} Nf4 {[%emt 0:00:02]} 41. Nxa6 {[%emt 0:00:04]} g4 {[%emt 0:00:
06]} 42. b4 {[%emt 0:00:06]} Kd6 {[%emt 0:00:02]} 43. b5 {[%emt 0:00:02]} Nd5 {
[%emt 0:00:03]} 44. Bb3 {[%emt 0:00:51]} Nc3 {[%emt 0:00:28]} 45. Bc4 {[%emt 0:
00:25]} f4 {[%emt 0:00:35]} 46. b6 {[%emt 0:00:11]} Kc6 {[%emt 0:00:01]} 47.
Nb4+ {[%emt 0:00:05]} Kxb6 {[%emt 0:00:02]} 48. Bxe6 {[%emt 0:00:01]} f3 {
[%emt 0:00:17]} 49. Bxg4 {[%emt 0:00:07]} Ra1+ {[%emt 0:00:01]} 50. Kh2 {
[%emt 0:00:01]} f2 {[%emt 0:00:01]} 51. Bh3 {[%emt 0:00:03]} f1=Q {[%emt 0:00:
02]} 52. Bxf1 {[%emt 0:00:02]} Rxf1 {[%emt 0:00:01]} 53. d4 {[%emt 0:00:01]}
Rd1 {[%emt 0:00:04]} 54. Nd3 {[%emt 0:00:06]} Rd2+ {[%emt 0:00:04]} 55. Kh3 {
[%emt 0:00:05]} Rxc2 {[%emt 0:00:02]} 56. Ne5 {[%emt 0:00:04]} Nb5 {[%emt 0:00:
22]} 57. d5 {[%emt 0:00:03]} Kc5 {[%emt 0:00:04]} 58. Nd3+ {[%emt 0:00:02]} Kd6
{[%emt 0:00:01]} 59. Kg4 {[%emt 0:00:14]} Nc7 {[%emt 0:00:08]} 60. Kg5 {
[%emt 0:00:27]} Nxd5 {[%emt 0:00:09]} 61. Ne1 {[%emt 0:00:09]} Rc3 {[%emt 0:00:
08]} 62. Kh6 {[%emt 0:00:40]} Nf6 {[%emt 0:00:13]} 63. Kg7 {[%emt 0:00:36]} Ke6
{[%emt 0:00:12]} 64. Ng2 {[%emt 0:00:03]} Rg3+ {[%emt 0:00:08]} 65. Kh6 {
[%emt 0:00:03]} Rg6# {[%emt 0:00:01]} 0-1

[Event "European Rapid Championship 2021"]
[Site "Katowice"]
[Date "2021.12.19"]
[Round "7.23"]
[White "Vingris, Mikelis"]
[Black "Rudnicki, Milosz"]
[Result "1/2-1/2"]
[ECO "B35"]
[WhiteElo "1904"]
[BlackElo "2200"]
[Annotator "NA"]
[PlyCount "117"]
[EventDate "2021.12.18"]
[EventType "swiss"]
[EventCountry "POL"]
[SourceTitle "playchess.com"]
[Source "ChessBase"]
[SourceQuality "1"]
[TimeControl "900+10"]

1. e4 {[%emt 0:00:03]} c5 {[%emt 0:00:02]} 2. Nf3 {[%emt 0:00:01]} Nc6 {
[%emt 0:00:05]} 3. d4 {[%emt 0:00:01]} cxd4 {[%emt 0:00:02]} 4. Nxd4 {[%emt 0:
00:02]} g6 {[%emt 0:00:07]} 5. Nc3 {[%emt 0:00:04]} Bg7 {[%emt 0:00:02]} 6. Be3
{[%emt 0:00:01]} Nf6 {[%emt 0:00:04]} 7. Bc4 {[%emt 0:00:08]} O-O {[%emt 0:00:
03]} 8. Bb3 {[%emt 0:00:01]} d6 {[%emt 0:00:07]} 9. f3 {[%emt 0:00:05]} Nd7 {
[%emt 0:00:03]} 10. Qd2 {[%emt 0:00:40]} Nb6 {[%emt 0:00:02]} 11. O-O {[%emt 0:
00:32]} Na5 {[%emt 0:02:54]} 12. Qd3 {[%emt 0:02:05]} Nxb3 {[%emt 0:01:10]} 13.
axb3 {[%emt 0:00:05]} Bd7 {[%emt 0:00:08]} 14. Nce2 {[%emt 0:01:21]} Qc7 {
[%emt 0:01:45]} 15. c4 {[%emt 0:00:13]} Bc6 {[%emt 0:00:47]} 16. Ra2 {[%emt 0:
00:46]} Nd7 {[%emt 0:00:10]} 17. b4 {[%emt 0:01:15]} a5 {[%emt 0:02:23]} 18.
Rfa1 {[%emt 0:01:42]} b6 {[%emt 0:01:11]} 19. Nb5 {[%emt 0:03:31]} Qb7 {
[%emt 0:03:29]} 20. bxa5 {[%emt 0:00:36]} Rxa5 {[%emt 0:00:05]} 21. Rxa5 {
[%emt 0:00:21]} bxa5 {[%emt 0:00:01]} 22. Rxa5 {[%emt 0:00:19]} Bxb2 {[%emt 0:
00:22]} 23. Qc2 {[%emt 0:01:23]} Bf6 {[%emt 0:00:34]} 24. Qa2 {[%emt 0:01:07]}
Ra8 {[%emt 0:00:27]} 25. Ned4 {[%emt 0:00:33]} Rxa5 {[%emt 0:01:48]} 26. Qxa5 {
[%emt 0:00:03]} Kg7 {[%emt 0:01:18]} 27. g3 {[%emt 0:00:44]} Ne5 {[%emt 0:00:
04]} 28. Qa2 {[%emt 0:00:41]} Bd7 {[%emt 0:00:08]} 29. Kf2 {[%emt 0:00:56]} Nc6
{[%emt 0:00:03]} 30. Nxc6 {[%emt 0:00:25]} Bxc6 {[%emt 0:00:15]} 31. Nd4 {
[%emt 0:00:01]} Bd7 {[%emt 0:00:06]} 32. Qb3 {[%emt 0:00:33]} Qa6 {[%emt 0:00:
23]} 33. f4 {[%emt 0:00:06]} Qa1 {[%emt 0:00:07]} 34. Nf3 {[%emt 0:00:12]} Bh3
{[%emt 0:00:11]} 35. Ne1 {[%emt 0:00:11]} Bc3 {[%emt 0:00:05]} 36. Ng2 {
[%emt 0:00:11]} Be6 {[%emt 0:00:17]} 37. h4 {[%emt 0:00:11]} Bd4 {[%emt 0:00:
10]} 38. Bxd4+ {[%emt 0:00:09]} Qxd4+ {[%emt 0:00:02]} 39. Ne3 {[%emt 0:00:01]}
h5 {[%emt 0:00:07]} 40. f5 {[%emt 0:00:12]} gxf5 {[%emt 0:00:17]} 41. exf5 {
[%emt 0:00:01]} Bxf5 {[%emt 0:00:03]} 42. Ke2 {[%emt 0:00:20]} Be6 {[%emt 0:00:
10]} 43. Qb5 {[%emt 0:00:08]} Bg4+ {[%emt 0:00:17]} 44. Nxg4 {[%emt 0:00:11]}
Qxg4+ {[%emt 0:00:02]} 45. Kf2 {[%emt 0:00:02]} Kg6 {[%emt 0:00:11]} 46. Qc6 {
[%emt 0:00:23]} Kf6 {[%emt 0:00:21]} 47. Qc7 {[%emt 0:00:11]} Qe4 {[%emt 0:00:
16]} 48. Qd8 {[%emt 0:00:11]} Qf5+ {[%emt 0:00:15]} 49. Kg2 Qe4+ 50. Kf2 {
[%emt 0:00:09]} Qc2+ {[%emt 0:00:05]} 51. Kf3 {[%emt 0:00:04]} Qd1+ {[%emt 0:
00:09]} 52. Kf2 {[%emt 0:00:09]} Ke6 {[%emt 0:00:08]} 53. Qc8+ {[%emt 0:00:02]}
Ke5 {[%emt 0:00:02]} 54. Qh8+ {[%emt 0:00:02]} Ke4 {[%emt 0:00:05]} 55. Qh7+ {
[%emt 0:00:03]} Kd4 {[%emt 0:00:14]} 56. Qxf7 {[%emt 0:00:10]} Qd2+ {[%emt 0:
00:14]} 57. Kg1 {[%emt 0:00:31]} Qe1+ {[%emt 0:00:06]} 58. Kg2 {[%emt 0:00:02]}
Qe4+ {[%emt 0:00:11]} 59. Kf2 {[%emt 0:00:21]} 1/2-1/2

[Event "European Rapid Championship 2021"]
[Site "Katowice"]
[Date "2021.12.19"]
[Round "7.24"]
[White "Mikhaletz, Lubomir"]
[Black "Agafonov, Yuri Dr"]
[Result "1/2-1/2"]
[ECO "B12"]
[WhiteElo "2166"]
[BlackElo "1938"]
[Annotator "NA"]
[PlyCount "97"]
[EventDate "2021.12.18"]
[EventType "swiss"]
[EventCountry "POL"]
[SourceTitle "playchess.com"]
[Source "ChessBase"]
[SourceQuality "1"]
[TimeControl "900+10"]

1. e4 {[%emt 0:00:27]} c6 {[%emt 0:00:08]} 2. d4 {[%emt 0:00:02]} d5 {[%emt 0:
00:01]} 3. e5 {[%emt 0:00:01]} c5 4. c4 {[%emt 0:00:10]} cxd4 {[%emt 0:01:41]}
5. Qxd4 {[%emt 0:00:07]} Be6 {[%emt 0:02:08]} 6. cxd5 {[%emt 0:01:36]} Qxd5 {
[%emt 0:00:11]} 7. Qxd5 {[%emt 0:00:20]} Bxd5 {[%emt 0:00:01]} 8. Nc3 {[%emt 0:
00:18]} e6 {[%emt 0:02:27]} 9. Nxd5 {[%emt 0:00:24]} exd5 {[%emt 0:00:03]} 10.
Nf3 {[%emt 0:00:31]} Nc6 {[%emt 0:00:01]} 11. a3 {[%emt 0:00:30]} Bc5 {[%emt 0:
01:33]} 12. b4 {[%emt 0:01:09]} Bb6 {[%emt 0:00:37]} 13. Bb2 {[%emt 0:00:07]}
Nge7 {[%emt 0:00:09]} 14. Bd3 {[%emt 0:00:29]} O-O {[%emt 0:00:51]} 15. O-O {
[%emt 0:00:06]} Ng6 {[%emt 0:00:03]} 16. g3 {[%emt 0:00:09]} Rfe8 {[%emt 0:01:
47]} 17. Rfe1 {[%emt 0:00:03]} Re7 {[%emt 0:01:24]} 18. b5 {[%emt 0:01:17]} Na5
{[%emt 0:00:05]} 19. a4 {[%emt 0:00:33]} Rae8 {[%emt 0:01:26]} 20. Kg2 {
[%emt 0:02:24]} Nc4 {[%emt 0:00:28]} 21. Bxc4 {[%emt 0:01:37]} dxc4 {[%emt 0:
00:01]} 22. Re4 {[%emt 0:00:21]} Rc8 {[%emt 0:00:26]} 23. a5 {[%emt 0:03:25]}
f5 {[%emt 0:00:15]} 24. Re2 {[%emt 0:00:46]} Bd8 {[%emt 0:00:39]} 25. Bc3 {
[%emt 0:00:07]} Rd7 {[%emt 0:00:42]} 26. a6 {[%emt 0:00:19]} bxa6 {[%emt 0:00:
16]} 27. Rxa6 {[%emt 0:00:09]} Bb6 {[%emt 0:00:13]} 28. Ba5 {[%emt 0:00:20]} c3
{[%emt 0:00:31]} 29. Bxb6 {[%emt 0:00:14]} axb6 {[%emt 0:00:01]} 30. Rc2 {
[%emt 0:00:02]} Rd5 {[%emt 0:00:22]} 31. Rxb6 {[%emt 0:00:06]} Nxe5 {[%emt 0:
00:03]} 32. Nxe5 {[%emt 0:00:15]} Rxe5 {[%emt 0:00:02]} 33. Kf3 {[%emt 0:00:14]
} Kf7 {[%emt 0:00:10]} 34. Rb7+ {[%emt 0:00:16]} Kf6 {[%emt 0:00:03]} 35. b6 {
[%emt 0:00:10]} Rc6 {[%emt 0:00:07]} 36. Rb8 {[%emt 0:00:28]} Rb5 {[%emt 0:00:
02]} 37. b7 {[%emt 0:00:09]} Rcb6 {[%emt 0:00:20]} 38. Rxc3 {[%emt 0:00:14]}
Rxb7 {[%emt 0:00:08]} 39. Rf8+ {[%emt 0:00:06]} Ke7 {[%emt 0:00:09]} 40. Rcc8 {
[%emt 0:00:01]} g5 {[%emt 0:01:02]} 41. h4 {[%emt 0:00:33]} Rb3+ {[%emt 0:00:
03]} 42. Kg2 {[%emt 0:00:02]} gxh4 {[%emt 0:00:02]} 43. gxh4 {[%emt 0:00:03]}
R7b4 {[%emt 0:00:27]} 44. Rxf5 {[%emt 0:00:40]} Rxh4 {[%emt 0:00:08]} 45. Rg8 {
[%emt 0:00:13]} Rh6 {[%emt 0:00:17]} 46. Rfg5 {[%emt 0:00:24]} Rf6 {[%emt 0:00:
11]} 47. Rh8 {[%emt 0:00:10]} Rbf3 {[%emt 0:00:21]} 48. Rxh7+ {[%emt 0:00:34]}
Ke6 {[%emt 0:00:01]} 49. Rg6 {[%emt 0:00:23]} 1/2-1/2